[Event "*** Qualifier 4: Titled Tuesday 3|2 Blitz"]
[Site "Chess.com"]
[Date "2017.04.25"]
[Round "6"]
[White "rubhani"]
[Black "daro94"]
[Result "1-0"]
[WhiteElo "2441"]
[BlackElo "2715"]
[TimeControl "180+2"]
[EndTime "14:16:09 PDT"]
[Termination "rubhani won by resignation"]

1. e4 {[%clk 0:03:01]} 1... e5 {[%clk 0:02:34.4]} 2. Nf3 {[%clk 0:02:59.5]} 2...
Nc6 {[%clk 0:02:35.9]} 3. Bb5 {[%clk 0:03:00.4]} 3... a6 {[%clk 0:02:37.4]} 4.
Ba4 {[%clk 0:03:01.7]} 4... Nf6 {[%clk 0:02:38.8]} 5. O-O {[%clk 0:03:02.9]}
5... Be7 {[%clk 0:02:39]} 6. d3 {[%clk 0:03:02.9]} 6... b5 {[%clk 0:02:39]} 7.
Bb3 {[%clk 0:03:03.4]} 7... d6 {[%clk 0:02:40.5]} 8. c3 {[%clk 0:03:03.4]} 8...
O-O {[%clk 0:02:40.6]} 9. Re1 {[%clk 0:03:04.8]} 9... Na5 {[%clk 0:02:40]} 10.
Bc2 {[%clk 0:03:04.9]} 10... c5 {[%clk 0:02:41.5]} 11. Nbd2 {[%clk 0:03:06.5]}
11... Nc6 {[%clk 0:02:36.7]} 12. Nf1 {[%clk 0:03:06.7]} 12... Re8 {[%clk
0:02:37.5]} 13. Ng3 {[%clk 0:03:07.6]} 13... Bf8 {[%clk 0:02:32.9]} 14. h3
{[%clk 0:03:08.7]} 14... h6 {[%clk 0:02:30]} 15. a3 {[%clk 0:02:54]} 15... d5
{[%clk 0:01:59.3]} 16. exd5 {[%clk 0:02:38.4]} 16... Qxd5 {[%clk 0:02:00.5]} 17.
a4 {[%clk 0:02:34.1]} 17... Bb7 {[%clk 0:01:54.6]} 18. Bb3 {[%clk 0:02:33.9]}
18... Qd7 {[%clk 0:01:52]} 19. axb5 {[%clk 0:02:26.8]} 19... axb5 {[%clk
0:01:52.6]} 20. Rxa8 {[%clk 0:02:28.3]} 20... Bxa8 {[%clk 0:01:54.5]} 21. Qe2
{[%clk 0:01:27.8]} 21... Rd8 {[%clk 0:01:24.2]} 22. Nxe5 {[%clk 0:01:24.1]}
22... Nxe5 {[%clk 0:01:25]} 23. Qxe5 {[%clk 0:01:26]} 23... Qc6 {[%clk
0:01:05.9]} 24. Ne4 {[%clk 0:01:16.7]} 24... Rxd3 {[%clk 0:01:02.1]} 25. Bc2
{[%clk 0:01:03.5]} 25... Nxe4 {[%clk 0:00:15.3]} 26. Bxd3 {[%clk 0:01:03.8]}
26... Nxf2 {[%clk 0:00:15.9]} 27. Kxf2 {[%clk 0:00:37.7]} 27... Qxg2+ {[%clk
0:00:17.1]} 28. Ke3 {[%clk 0:00:38.5]} 28... c4 {[%clk 0:00:09.8]} 29. Bf1
{[%clk 0:00:31.5]} 29... Qc2 {[%clk 0:00:03.8]} 30. Bd2 {[%clk 0:00:17.1]} 30...
f6 {[%clk 0:00:04.1]} 31. Qxb5 {[%clk 0:00:16.5]} 31... Bd6 {[%clk 0:00:04.2]}
32. Qxc4+ {[%clk 0:00:16.8]} 32... Kh8 {[%clk 0:00:03.3]} 33. Bd3 {[%clk
0:00:17.8]} 33... Bf4+ {[%clk 0:00:03.8]} 34. Qxf4 {[%clk 0:00:17.3]} 34... Qxb2
{[%clk 0:00:05.3]} 35. Rb1 {[%clk 0:00:17.7]} 35... Qa3 {[%clk 0:00:04.7]} 36.
Rb8+ {[%clk 0:00:18.2]} 1-0

[Event "*** Qualifier 4: Titled Tuesday 3|2 Blitz"]
[Site "Chess.com"]
[Date "2017.04.25"]
[Round "6"]
[White "Cayse"]
[Black "jcibarra"]
[Result "1-0"]
[WhiteElo "2660"]
[BlackElo "2686"]
[TimeControl "180+2"]
[EndTime "14:16:33 PDT"]
[Termination "Cayse won by checkmate"]

1. e4 {[%clk 0:03:02]} 1... e5 {[%clk 0:02:55.5]} 2. Nf3 {[%clk 0:03:02.5]} 2...
Nc6 {[%clk 0:02:55.9]} 3. Bc4 {[%clk 0:03:01.9]} 3... Bc5 {[%clk 0:02:55]} 4. c3
{[%clk 0:03:02.3]} 4... Nf6 {[%clk 0:02:55.9]} 5. d4 {[%clk 0:03:02.9]} 5...
exd4 {[%clk 0:02:56.7]} 6. e5 {[%clk 0:03:02.5]} 6... d5 {[%clk 0:02:55.8]} 7.
Bb5 {[%clk 0:03:02.9]} 7... Ne4 {[%clk 0:02:55.9]} 8. cxd4 {[%clk 0:03:03.7]}
8... Bb6 {[%clk 0:02:56.7]} 9. Nc3 {[%clk 0:02:58.1]} 9... O-O {[%clk
0:02:55.2]} 10. Be3 {[%clk 0:02:58.5]} 10... f6 {[%clk 0:02:51.2]} 11. Qb3
{[%clk 0:02:25.2]} 11... Nxc3 {[%clk 0:02:45.9]} 12. Bxc6 {[%clk 0:02:24.2]}
12... bxc6 {[%clk 0:02:40.1]} 13. Qxc3 {[%clk 0:02:24.8]} 13... Bg4 {[%clk
0:02:34.5]} 14. exf6 {[%clk 0:02:20.7]} 14... Qxf6 {[%clk 0:01:35.9]} 15. Ne5
{[%clk 0:02:20.5]} 15... Bh5 {[%clk 0:01:26.3]} 16. O-O {[%clk 0:01:55.4]} 16...
Rad8 {[%clk 0:01:13.4]} 17. Nxc6 {[%clk 0:01:46.7]} 17... Rd6 {[%clk 0:01:10.5]}
18. Ne5 {[%clk 0:01:47.6]} 18... Be8 {[%clk 0:01:02.9]} 19. f4 {[%clk
0:01:44.8]} 19... Qf5 {[%clk 0:01:01.3]} 20. b4 {[%clk 0:01:42.6]} 20... Ba4
{[%clk 0:00:58.2]} 21. Rac1 {[%clk 0:01:37.6]} 21... h5 {[%clk 0:00:55.5]} 22.
Rfe1 {[%clk 0:01:36.6]} 22... h4 {[%clk 0:00:41.7]} 23. h3 {[%clk 0:01:37.2]}
23... a6 {[%clk 0:00:37.7]} 24. Qa3 {[%clk 0:01:37.4]} 24... Bb5 {[%clk
0:00:38.2]} 25. Qb3 {[%clk 0:01:38.1]} 25... Kh7 {[%clk 0:00:38.2]} 26. a4
{[%clk 0:01:37.4]} 26... Bc4 {[%clk 0:00:38.1]} 27. Nxc4 {[%clk 0:01:33]} 27...
dxc4 {[%clk 0:00:40]} 28. Qxc4 {[%clk 0:01:34.1]} 28... Rg6 {[%clk 0:00:37.6]}
29. Qc2 {[%clk 0:01:31.2]} 29... Qd5 {[%clk 0:00:35.1]} 30. Qf2 {[%clk
0:01:19.8]} 30... Kg8 {[%clk 0:00:33.9]} 31. Red1 {[%clk 0:01:16.5]} 31... Rg3
{[%clk 0:00:34]} 32. a5 {[%clk 0:01:11.7]} 32... Ba7 {[%clk 0:00:33.2]} 33. Rxc7
{[%clk 0:01:10.6]} 33... Bb8 {[%clk 0:00:34.5]} 34. Rc5 {[%clk 0:01:11.3]} 34...
Qb3 {[%clk 0:00:31.6]} 35. Re1 {[%clk 0:01:06.7]} 35... Qxb4 {[%clk 0:00:31.1]}
36. Bd2 {[%clk 0:01:07.3]} 36... Qb7 {[%clk 0:00:29.8]} 37. Qe2 {[%clk
0:01:00.2]} 37... Ba7 {[%clk 0:00:27.5]} 38. Qc4+ {[%clk 0:00:56.8]} 38... Kh7
{[%clk 0:00:26.2]} 39. Rh5+ {[%clk 0:00:33.8]} 39... Kg6 {[%clk 0:00:26.9]} 40.
Qc2+ {[%clk 0:00:33.7]} 40... Kf7 {[%clk 0:00:17.5]} 41. Qc4+ {[%clk 0:00:19.9]}
41... Kg6 {[%clk 0:00:16.9]} 42. Qc2+ {[%clk 0:00:21.3]} 42... Kf7 {[%clk
0:00:17.4]} 43. Qf5+ {[%clk 0:00:22.3]} 43... Kg8 {[%clk 0:00:16.3]} 44. Qh7+
{[%clk 0:00:22.3]} 44... Kf7 {[%clk 0:00:17.7]} 45. Rf5# {[%clk 0:00:23.5]} 1-0

[Event "*** Qualifier 4: Titled Tuesday 3|2 Blitz"]
[Site "Chess.com"]
[Date "2017.04.25"]
[Round "6"]
[White "Shivagami"]
[Black "abubakrtagelsir"]
[Result "0-1"]
[WhiteElo "1950"]
[BlackElo "2146"]
[TimeControl "180+2"]
[EndTime "14:16:37 PDT"]
[Termination "abubakrtagelsir won by resignation"]

1. d4 {[%clk 0:03:02]} 1... d5 {[%clk 0:02:57.3]} 2. Bf4 {[%clk 0:03:02.5]} 2...
Nf6 {[%clk 0:02:57.6]} 3. e3 {[%clk 0:03:03]} 3... c5 {[%clk 0:02:57.9]} 4. c3
{[%clk 0:03:03.4]} 4... Nc6 {[%clk 0:02:58.6]} 5. Nd2 {[%clk 0:03:03.1]} 5...
Qb6 {[%clk 0:02:58.4]} 6. Qb3 {[%clk 0:03:01.9]} 6... c4 {[%clk 0:02:58.1]} 7.
Qc2 {[%clk 0:03:01.9]} 7... Bg4 {[%clk 0:02:56.9]} 8. f3 {[%clk 0:02:57.9]} 8...
Bh5 {[%clk 0:02:55.6]} 9. e4 {[%clk 0:02:58]} 9... Bg6 {[%clk 0:02:51.7]} 10.
Ne2 {[%clk 0:02:54.4]} 10... e6 {[%clk 0:02:44.4]} 11. Ng3 {[%clk 0:02:54.4]}
11... Be7 {[%clk 0:02:30.4]} 12. h4 {[%clk 0:02:48.6]} 12... h6 {[%clk
0:02:30.7]} 13. Qc1 {[%clk 0:02:46.4]} 13... Rc8 {[%clk 0:02:19.8]} 14. Be2
{[%clk 0:02:41.4]} 14... Qd8 {[%clk 0:02:07.5]} 15. Bd1 {[%clk 0:02:38.6]} 15...
b5 {[%clk 0:02:04.3]} 16. Bc2 {[%clk 0:02:38.8]} 16... dxe4 {[%clk 0:01:57.4]}
17. fxe4 {[%clk 0:02:34.3]} 17... Nh5 {[%clk 0:01:51.5]} 18. Nxh5 {[%clk
0:02:31.6]} 18... Bxh5 {[%clk 0:01:51.9]} 19. Bg3 {[%clk 0:02:27.9]} 19... O-O
{[%clk 0:01:48.2]} 20. Nf3 {[%clk 0:02:28.4]} 20... b4 {[%clk 0:01:46.7]} 21.
Qe3 {[%clk 0:02:21.5]} 21... bxc3 {[%clk 0:01:46.2]} 22. bxc3 {[%clk 0:02:21.4]}
22... Rb8 {[%clk 0:01:34.4]} 23. Rb1 {[%clk 0:02:17.8]} 23... Rxb1+ {[%clk
0:01:32.6]} 24. Bxb1 {[%clk 0:02:17.5]} 24... Qa5 {[%clk 0:01:18.8]} 25. O-O
{[%clk 0:02:12.9]} 25... Bg6 {[%clk 0:01:02.3]} 26. Nd2 {[%clk 0:01:51.3]} 26...
Qh5 {[%clk 0:00:51.8]} 27. Qf2 {[%clk 0:01:27.4]} 27... Na5 {[%clk 0:00:45.4]}
28. Bc2 {[%clk 0:01:18.9]} 28... Rc8 {[%clk 0:00:37.5]} 29. Rb1 {[%clk
0:01:06.2]} 29... Nc6 {[%clk 0:00:31.8]} 30. a4 {[%clk 0:01:02.2]} 30... Qa5
{[%clk 0:00:30.6]} 31. Qf3 {[%clk 0:00:57.4]} 31... Nxd4 {[%clk 0:00:29.2]} 32.
Qd1 {[%clk 0:00:26.1]} 32... Qxc3 {[%clk 0:00:26.7]} 33. Rc1 {[%clk 0:00:21.4]}
33... Qxg3 {[%clk 0:00:25.5]} 34. Nf1 {[%clk 0:00:20.1]} 34... Qxh4 {[%clk
0:00:23.7]} 35. g3 {[%clk 0:00:17.6]} 35... Qg5 {[%clk 0:00:23.7]} 36. Kg2
{[%clk 0:00:15.9]} 36... Nxc2 {[%clk 0:00:21.3]} 37. Qxc2 {[%clk 0:00:17.3]}
37... Bxe4+ {[%clk 0:00:21.4]} 0-1

[Event "*** Qualifier 4: Titled Tuesday 3|2 Blitz"]
[Site "Chess.com"]
[Date "2017.04.25"]
[Round "6"]
[White "underdogchss"]
[Black "XDPS"]
[Result "1-0"]
[WhiteElo "2405"]
[BlackElo "2524"]
[TimeControl "180+2"]
[EndTime "14:16:47 PDT"]
[Termination "underdogchss won by resignation"]

1. d4 {[%clk 0:03:02]} 1... d5 {[%clk 0:02:59.8]} 2. Nf3 {[%clk 0:03:03.1]} 2...
Nf6 {[%clk 0:03:00.5]} 3. c4 {[%clk 0:03:04.4]} 3... c6 {[%clk 0:03:01.9]} 4.
Nc3 {[%clk 0:03:04.9]} 4... e6 {[%clk 0:03:03.4]} 5. Bg5 {[%clk 0:03:05.4]} 5...
Nbd7 {[%clk 0:03:04.9]} 6. e3 {[%clk 0:03:04.5]} 6... Qa5 {[%clk 0:03:06.1]} 7.
cxd5 {[%clk 0:03:05.1]} 7... Nxd5 {[%clk 0:03:06.9]} 8. Qd2 {[%clk 0:03:06]}
8... Bb4 {[%clk 0:03:07]} 9. Rc1 {[%clk 0:03:07.7]} 9... b6 {[%clk 0:03:08.1]}
10. a3 {[%clk 0:03:06.3]} 10... Bxc3 {[%clk 0:03:08.8]} 11. bxc3 {[%clk
0:03:07.5]} 11... Ba6 {[%clk 0:03:06.7]} 12. c4 {[%clk 0:02:55.4]} 12... Qxd2+
{[%clk 0:03:07.1]} 13. Nxd2 {[%clk 0:02:56.1]} 13... N5f6 {[%clk 0:03:07.3]} 14.
f3 {[%clk 0:02:39.1]} 14... c5 {[%clk 0:03:05.2]} 15. Bh4 {[%clk 0:02:36.8]}
15... Rc8 {[%clk 0:03:05.2]} 16. Be2 {[%clk 0:02:24.4]} 16... O-O {[%clk
0:03:04.4]} 17. O-O {[%clk 0:02:25.2]} 17... Rfe8 {[%clk 0:03:05.6]} 18. Nb3
{[%clk 0:02:21]} 18... cxd4 {[%clk 0:02:58.1]} 19. exd4 {[%clk 0:02:21.4]} 19...
e5 {[%clk 0:02:59.5]} 20. Rfe1 {[%clk 0:02:04.2]} 20... exd4 {[%clk 0:02:54.2]}
21. Nxd4 {[%clk 0:02:04.9]} 21... h6 {[%clk 0:02:48.2]} 22. Nf5 {[%clk
0:01:30.6]} 22... Rc5 {[%clk 0:02:47.2]} 23. Nd6 {[%clk 0:01:20.1]} 23... Re6
{[%clk 0:02:45.6]} 24. Rcd1 {[%clk 0:01:00.2]} 24... Rce5 {[%clk 0:02:36.1]} 25.
Bf1 {[%clk 0:00:55.7]} 25... Rxe1 {[%clk 0:02:25.5]} 26. Bxe1 {[%clk 0:00:56.7]}
26... Nc5 {[%clk 0:02:23.7]} 27. Bf2 {[%clk 0:00:47.4]} 27... Na4 {[%clk
0:02:01.6]} 28. Nb5 {[%clk 0:00:45]} 28... Re7 {[%clk 0:02:02.1]} 29. Rd8+
{[%clk 0:00:45.1]} 29... Kh7 {[%clk 0:02:02.3]} 30. Bd3+ {[%clk 0:00:44.9]}
30... g6 {[%clk 0:02:03.4]} 31. Bh4 {[%clk 0:00:46.1]} 31... Kg7 {[%clk
0:01:58.2]} 32. Rd6 {[%clk 0:00:46.2]} 32... g5 {[%clk 0:01:57.9]} 33. Bf2
{[%clk 0:00:43.8]} 33... Nb2 {[%clk 0:01:40.4]} 34. Bd4 {[%clk 0:00:39.9]} 34...
Re1+ {[%clk 0:01:21.5]} 35. Bf1 {[%clk 0:00:40.7]} 35... Nxc4 {[%clk 0:01:18.5]}
36. Bxf6+ {[%clk 0:00:40]} 36... Kh7 {[%clk 0:01:20.1]} 37. Rd8 {[%clk
0:00:30.2]} 37... Bxb5 {[%clk 0:01:17.9]} 38. Kf2 {[%clk 0:00:28.3]} 38... Rxf1+
{[%clk 0:00:56.5]} 39. Kxf1 {[%clk 0:00:29.1]} 39... Nxa3+ {[%clk 0:00:57.1]}
40. Kf2 {[%clk 0:00:30.5]} 40... Bc4 {[%clk 0:00:55.7]} 41. Bb2 {[%clk
0:00:26.3]} 41... Nc2 {[%clk 0:00:53.9]} 42. g4 {[%clk 0:00:22.9]} 42... f6
{[%clk 0:00:30.3]} 43. Bxf6 {[%clk 0:00:22.4]} 43... a5 {[%clk 0:00:29]} 44. Bc3
{[%clk 0:00:20.7]} 44... a4 {[%clk 0:00:27.7]} 45. h4 {[%clk 0:00:21.2]} 45...
gxh4 {[%clk 0:00:28.5]} 46. f4 {[%clk 0:00:22.2]} 46... a3 {[%clk 0:00:29.1]}
47. f5 {[%clk 0:00:22.9]} 1-0

[Event "*** Qualifier 4: Titled Tuesday 3|2 Blitz"]
[Site "Chess.com"]
[Date "2017.04.25"]
[Round "6"]
[White "IIIlllII1llIl"]
[Black "Oneofmyturns"]
[Result "1-0"]
[WhiteElo "2549"]
[BlackElo "2503"]
[TimeControl "180+2"]
[EndTime "14:16:50 PDT"]
[Termination "IIIlllII1llIl won on time"]

1. e4 {[%clk 0:03:02]} 1... Nf6 {[%clk 0:02:58.2]} 2. e5 {[%clk 0:03:01.8]} 2...
Nd5 {[%clk 0:02:59.5]} 3. d4 {[%clk 0:03:03.2]} 3... d6 {[%clk 0:03:00.8]} 4.
Nf3 {[%clk 0:03:04.4]} 4... Bg4 {[%clk 0:03:01.9]} 5. Be2 {[%clk 0:03:04.5]}
5... e6 {[%clk 0:03:03]} 6. O-O {[%clk 0:03:05.3]} 6... Be7 {[%clk 0:03:04.4]}
7. c4 {[%clk 0:03:06.5]} 7... Nb6 {[%clk 0:03:05.4]} 8. Nc3 {[%clk 0:03:01.5]}
8... O-O {[%clk 0:03:05.4]} 9. Be3 {[%clk 0:03:02]} 9... Nc6 {[%clk 0:03:06.1]}
10. exd6 {[%clk 0:02:55.2]} 10... cxd6 {[%clk 0:03:08]} 11. d5 {[%clk 0:02:55]}
11... exd5 {[%clk 0:03:08.9]} 12. Bxb6 {[%clk 0:02:07.2]} 12... Qxb6 {[%clk
0:03:00.7]} 13. Nxd5 {[%clk 0:02:08.3]} 13... Qxb2 {[%clk 0:02:46.2]} 14. Rb1
{[%clk 0:02:09]} 14... Qxa2 {[%clk 0:02:46.6]} 15. Rxb7 {[%clk 0:02:09.6]} 15...
Bd8 {[%clk 0:02:33.7]} 16. Nc3 {[%clk 0:01:41.1]} 16... Qa6 {[%clk 0:02:30.7]}
17. Rb1 {[%clk 0:01:29.3]} 17... Ne5 {[%clk 0:01:55.9]} 18. c5 {[%clk
0:00:53.4]} 18... Qc8 {[%clk 0:01:41.5]} 19. cxd6 {[%clk 0:00:46.3]} 19... Qxc3
{[%clk 0:01:03.2]} 20. Nxe5 {[%clk 0:00:45.6]} 20... Bf5 {[%clk 0:01:04.1]} 21.
Rb5 {[%clk 0:00:17.6]} 21... a6 {[%clk 0:01:04.9]} 22. Rd5 {[%clk 0:00:15.8]}
22... Be6 {[%clk 0:01:06.3]} 23. Qd4 {[%clk 0:00:14.1]} 23... Qa3 {[%clk
0:00:34.8]} 24. Bc4 {[%clk 0:00:11.9]} 24... Bf6 {[%clk 0:00:26.5]} 25. f4
{[%clk 0:00:13.3]} 25... Rad8 {[%clk 0:00:23.5]} 26. d7 {[%clk 0:00:13.3]} 26...
Bxd5 {[%clk 0:00:21.5]} 27. Qxd5 {[%clk 0:00:15.2]} 27... Qe7 {[%clk 0:00:17.4]}
28. Rd1 {[%clk 0:00:15.6]} 28... Bxe5 {[%clk 0:00:08.2]} 29. fxe5 {[%clk
0:00:17.5]} 29... Rb8 {[%clk 0:00:07.4]} 30. h3 {[%clk 0:00:15.6]} 30... Rfd8
{[%clk 0:00:08]} 31. Bxa6 {[%clk 0:00:12.6]} 31... Rb6 {[%clk 0:00:08.9]} 32.
Bb5 {[%clk 0:00:12.9]} 32... Re6 {[%clk 0:00:09.9]} 33. Re1 {[%clk 0:00:13]}
33... Kf8 {[%clk 0:00:10]} 34. Re4 {[%clk 0:00:12.4]} 34... h6 {[%clk 0:00:09]}
35. Kh1 {[%clk 0:00:12.8]} 35... Qa3 {[%clk 0:00:06.5]} 36. Kh2 {[%clk
0:00:11.1]} 36... Qb2 {[%clk 0:00:06.7]} 37. Qc5+ {[%clk 0:00:09.8]} 37... Kg8
{[%clk 0:00:07.4]} 38. Qc8 {[%clk 0:00:10.5]} 38... Qxb5 {[%clk 0:00:02.7]} 39.
Qxd8+ {[%clk 0:00:11.1]} 39... Kh7 {[%clk 0:00:04.6]} 40. Qc7 {[%clk 0:00:08.2]}
40... Qd5 {[%clk 0:00:03.3]} 41. Rf4 {[%clk 0:00:06.5]} 41... Re7 {[%clk
0:00:02.6]} 42. d8=Q {[%clk 0:00:06.9]} 42... Rxc7 {[%clk 0:00:03.9]} 43. Qxd5
{[%clk 0:00:07.9]} 1-0

[Event "*** Qualifier 4: Titled Tuesday 3|2 Blitz"]
[Site "Chess.com"]
[Date "2017.04.25"]
[Round "6"]
[White "Rikikits"]
[Black "biostatistician"]
[Result "0-1"]
[WhiteElo "2590"]
[BlackElo "2458"]
[TimeControl "180+2"]
[EndTime "14:16:52 PDT"]
[Termination "biostatistician won on time"]

1. e4 {[%clk 0:01:34.2]} 1... e6 {[%clk 0:02:58]} 2. d4 {[%clk 0:01:35]} 2... d5
{[%clk 0:02:59.3]} 3. Nc3 {[%clk 0:01:36.3]} 3... Nf6 {[%clk 0:02:59.5]} 4. e5
{[%clk 0:01:36.1]} 4... Nfd7 {[%clk 0:03:00.1]} 5. f4 {[%clk 0:01:37.8]} 5... c5
{[%clk 0:03:02]} 6. Nf3 {[%clk 0:01:33.8]} 6... Nc6 {[%clk 0:03:03.9]} 7. Ne2
{[%clk 0:01:34.8]} 7... cxd4 {[%clk 0:02:50]} 8. Nexd4 {[%clk 0:01:36.7]} 8...
Nc5 {[%clk 0:02:50.6]} 9. Be3 {[%clk 0:01:36.6]} 9... Qb6 {[%clk 0:02:38.2]} 10.
Rb1 {[%clk 0:01:22.5]} 10... Nxd4 {[%clk 0:02:32.8]} 11. Nxd4 {[%clk 0:01:14.5]}
11... Bd7 {[%clk 0:02:29.3]} 12. Be2 {[%clk 0:01:13.9]} 12... Ne4 {[%clk
0:02:25.6]} 13. O-O {[%clk 0:01:13.6]} 13... Bc5 {[%clk 0:02:18.6]} 14. c3
{[%clk 0:01:14.3]} 14... O-O {[%clk 0:02:01.2]} 15. Bd3 {[%clk 0:01:13.7]} 15...
Qc7 {[%clk 0:01:55.3]} 16. Qh5 {[%clk 0:01:11.8]} 16... f5 {[%clk 0:01:40.6]}
17. exf6 {[%clk 0:01:06.6]} 17... Rxf6 {[%clk 0:01:40.3]} 18. Bxe4 {[%clk
0:00:43.6]} 18... dxe4 {[%clk 0:01:40.4]} 19. Qe5 {[%clk 0:00:41.8]} 19... Qxe5
{[%clk 0:01:18.6]} 20. fxe5 {[%clk 0:00:43.7]} 20... Rxf1+ {[%clk 0:01:19.1]}
21. Rxf1 {[%clk 0:00:40.6]} 21... Bc6 {[%clk 0:01:20.1]} 22. Re1 {[%clk
0:00:34.6]} 22... Bd5 {[%clk 0:01:19.2]} 23. b3 {[%clk 0:00:32.1]} 23... b6
{[%clk 0:01:02]} 24. c4 {[%clk 0:00:18.1]} 24... Bb7 {[%clk 0:01:02.7]} 25. Nxe6
{[%clk 0:00:17.9]} 25... Bxe3+ {[%clk 0:01:03.3]} 26. Rxe3 {[%clk 0:00:19.8]}
26... Re8 {[%clk 0:01:04.3]} 27. Nf4 {[%clk 0:00:18.3]} 27... Rxe5 {[%clk
0:01:05.2]} 28. Ne2 {[%clk 0:00:18.3]} 28... Re7 {[%clk 0:00:59.3]} 29. Nc3
{[%clk 0:00:19.5]} 29... Rd7 {[%clk 0:00:58.6]} 30. Kf2 {[%clk 0:00:18.6]} 30...
Kf7 {[%clk 0:00:51.4]} 31. Nxe4 {[%clk 0:00:18]} 31... Kg6 {[%clk 0:00:47.4]}
32. Ke2 {[%clk 0:00:17.9]} 32... Re7 {[%clk 0:00:45.1]} 33. Nd6 {[%clk
0:00:18.8]} 33... Rxe3+ {[%clk 0:00:43.1]} 34. Kxe3 {[%clk 0:00:19.7]} 34...
Bxg2 {[%clk 0:00:45]} 35. Nc8 {[%clk 0:00:21]} 35... Kf5 {[%clk 0:00:40.9]} 36.
Kf2 {[%clk 0:00:20.5]} 36... Be4 {[%clk 0:00:40.3]} 37. Nxa7 {[%clk 0:00:20.2]}
37... Bb1 {[%clk 0:00:37.8]} 38. a3 {[%clk 0:00:05.9]} 38... Ba2 {[%clk
0:00:38.1]} 39. b4 {[%clk 0:00:06]} 39... Bxc4 {[%clk 0:00:39.1]} 40. Nc8 {[%clk
0:00:07.1]} 40... b5 {[%clk 0:00:39.6]} 41. a4 {[%clk 0:00:07.3]} 41... Ke4
{[%clk 0:00:27.3]} 0-1

[Event "*** Qualifier 4: Titled Tuesday 3|2 Blitz"]
[Site "Chess.com"]
[Date "2017.04.25"]
[Round "6"]
[White "Bugcrusher"]
[Black "AkshatChandra"]
[Result "0-1"]
[WhiteElo "2473"]
[BlackElo "2674"]
[TimeControl "180+2"]
[EndTime "14:17:08 PDT"]
[Termination "AkshatChandra won by resignation"]

1. d4 {[%clk 0:03:02]} 1... Nf6 {[%clk 0:03:00.9]} 2. c4 {[%clk 0:03:02.3]} 2...
e6 {[%clk 0:03:02.4]} 3. Nf3 {[%clk 0:03:02.4]} 3... d5 {[%clk 0:03:01.8]} 4.
Bg5 {[%clk 0:03:01.8]} 4... h6 {[%clk 0:03:01.4]} 5. Bh4 {[%clk 0:03:00.8]} 5...
dxc4 {[%clk 0:03:00.6]} 6. Nc3 {[%clk 0:02:55.5]} 6... c6 {[%clk 0:03:02.1]} 7.
a4 {[%clk 0:02:45.8]} 7... Bb4 {[%clk 0:02:59.1]} 8. e3 {[%clk 0:02:42.3]} 8...
g5 {[%clk 0:02:59.4]} 9. Bg3 {[%clk 0:02:42.8]} 9... Ne4 {[%clk 0:03:00.5]} 10.
Qc2 {[%clk 0:02:43.1]} 10... Nxg3 {[%clk 0:02:54.6]} 11. hxg3 {[%clk 0:02:43.5]}
11... b5 {[%clk 0:02:51.3]} 12. Be2 {[%clk 0:02:42.6]} 12... Bb7 {[%clk
0:02:49.3]} 13. O-O {[%clk 0:02:30.7]} 13... a6 {[%clk 0:02:47]} 14. Ne5 {[%clk
0:02:18.1]} 14... Nd7 {[%clk 0:02:44.2]} 15. f4 {[%clk 0:02:01.7]} 15... gxf4
{[%clk 0:02:37.4]} 16. gxf4 {[%clk 0:02:01.2]} 16... Qe7 {[%clk 0:02:31]} 17.
Bh5 {[%clk 0:01:58.7]} 17... O-O {[%clk 0:02:19.6]} 18. Ne4 {[%clk 0:01:46.5]}
18... f5 {[%clk 0:02:04]} 19. Nc3 {[%clk 0:01:21.4]} 19... Nxe5 {[%clk 0:01:59]}
20. fxe5 {[%clk 0:01:10.3]} 20... Qg5 {[%clk 0:01:52]} 21. Qe2 {[%clk
0:01:07.7]} 21... c5 {[%clk 0:01:49.8]} 22. axb5 {[%clk 0:01:03.8]} 22... cxd4
{[%clk 0:01:30.5]} 23. exd4 {[%clk 0:01:02.7]} 23... Bxc3 {[%clk 0:01:30.8]} 24.
bxc3 {[%clk 0:01:00.5]} 24... axb5 {[%clk 0:01:32.1]} 25. Bf3 {[%clk 0:01:00.8]}
25... Rxa1 {[%clk 0:01:29.4]} 26. Rxa1 {[%clk 0:00:59.2]} 26... Rb8 {[%clk
0:01:20.2]} 27. Bxb7 {[%clk 0:00:52.3]} 27... Rxb7 {[%clk 0:01:22.1]} 28. Qf3
{[%clk 0:00:53.7]} 28... Rg7 {[%clk 0:01:19]} 29. Rb1 {[%clk 0:00:34.4]} 29...
Qg3 {[%clk 0:01:06.1]} 30. Qxg3 {[%clk 0:00:21.1]} 30... Rxg3 {[%clk 0:01:08]}
31. Rxb5 {[%clk 0:00:22.3]} 31... Rxc3 {[%clk 0:01:09.5]} 32. Rb6 {[%clk
0:00:23.4]} 32... Kf7 {[%clk 0:01:08.1]} 33. Rb7+ {[%clk 0:00:24.5]} 33... Ke8
{[%clk 0:01:07.9]} 34. Rb6 {[%clk 0:00:23.8]} 34... Kd7 {[%clk 0:01:07.8]} 35.
Rd6+ {[%clk 0:00:20.8]} 35... Ke7 {[%clk 0:01:06.6]} 36. Rc6 {[%clk 0:00:21.9]}
36... Rc1+ {[%clk 0:00:56.4]} 37. Kf2 {[%clk 0:00:21.2]} 37... Rc2+ {[%clk
0:00:51.5]} 38. Kf3 {[%clk 0:00:21.8]} 38... c3 {[%clk 0:00:50.7]} 39. Rc7+
{[%clk 0:00:22.1]} 39... Kd8 {[%clk 0:00:49.8]} 40. Rc4 {[%clk 0:00:22.2]} 40...
Kd7 {[%clk 0:00:46.6]} 41. g3 {[%clk 0:00:22.5]} 41... h5 {[%clk 0:00:46.3]} 42.
Kf4 {[%clk 0:00:22]} 42... Rf2+ {[%clk 0:00:42.4]} 43. Kg5 {[%clk 0:00:22.8]}
43... Rf3 {[%clk 0:00:41.2]} 44. Kf6 {[%clk 0:00:19.9]} 44... Rxg3 {[%clk
0:00:38.7]} 45. d5 {[%clk 0:00:20.9]} 45... exd5 {[%clk 0:00:37.1]} 46. Rc5
{[%clk 0:00:15.5]} 46... Re3 {[%clk 0:00:31.7]} 47. Rxd5+ {[%clk 0:00:13.5]}
47... Kc6 {[%clk 0:00:32.8]} 48. Rd8 {[%clk 0:00:14.1]} 48... f4 {[%clk
0:00:31.6]} 0-1